fUST/lending_fUST_20250619
["ID","MTS","AMOUNT","RATE_DAILY","PERIOD"]
[366534264,1750308636303,-460.0,0.00021917,6]
[366534265,1750308636312,-375.05844877,0.00021917,6]
[366534266,1750308636321,-409.70723316,0.00021917,6]
[366534267,1750308636331,-675.69,0.00021917,6]
[366534268,1750308636340,-460.0,0.00021917,6]
[366534269,1750308636351,-154.88383204,0.00021917,6]
[366534270,1750308636360,-3950.53,0.00021917,6]
[366534271,1750308636370,-408.69029551,0.00021917,6]
[366534272,1750308636380,-440.0,0.00021917,6]
[366534273,1750308636389,-204.08141065,0.0002194,2]
[366534274,1750308636403,-500.0,0.00021973,2]
[366534275,1750308636412,-500.0,0.00021973,2]
[366534276,1750308636421,-501.81217881,0.00021973,2]
[366534277,1750308636430,-510.44243552,0.00021973,2]
[366534278,1750308636439,-500.0,0.00021973,2]
[366534279,1750308636448,-511.02801521,0.00021973,2]
[366534280,1750308636458,-356.39486341,0.00021973,2]
[366534281,1750308636468,-500.39389899,0.00021973,2]
[366534282,1750308636478,-500.0,0.00021973,2]
[366534283,1750308636487,-500.0,0.00021973,2]
[366534284,1750308636497,-8324.91009827,0.0002199,2]
[366534285,1750308636506,-174.0,0.00022,2]
[366534286,1750308636515,-10006.14418551,0.00022,2]
[366534287,1750308636525,-169.0,0.00022,2]
[366534288,1750308636535,-160.0,0.00022,3]
[366534289,1750308636544,-164.38369456,0.00022,3]
[366534290,1750308636554,-187.0,0.00022,2]
[366534291,1750308636563,-155.0,0.00022,2]
[366534292,1750308636572,-2682.53978183,0.00022023,2]
[366534293,1750308636581,-365.6169836,0.00022027,2]
[366534294,1750308636590,-365.6169836,0.00022027,2]
[366534295,1750308636600,-365.6169836,0.00022027,2]
[366534296,1750308636610,-420.0,0.00022039,2]
[366534297,1750308636619,-303.3583109,0.00022053,6]
[366534298,1750308636628,-505.80125923,0.00022091,3]
[366534299,1750308636637,-13664.99802017,0.00022091,2]
[366534300,1750308636647,-2294.14455123,0.0002216,2]
[366534301,1750308636655,-500.0,0.00022173,2]
[366534302,1750308636665,-500.0,0.00022173,2]
[366534303,1750308636674,-600.0,0.00022173,2]
[366534304,1750308636683,-501.36770528,0.00022173,2]
[366534305,1750308636692,-500.0,0.00022173,2]
[366534306,1750308636701,-377.36263857,0.00022173,2]
[366534307,1750308636710,-216.181082,0.00022175,11]
[366534308,1750308636719,-313.24138263,0.00022191,6]
[366534309,1750308636728,-475.11962312,0.00022191,6]
[366534310,1750308636737,-460.0,0.00022191,6]
[366534311,1750308636747,-315.75777632,0.00022191,6]
[366534312,1750308636756,-420.56184503,0.00022191,6]
[366534313,1750308636766,-460.0,0.00022191,6]
[366534314,1750308636775,-460.0,0.00022191,6]
[366534315,1750308636784,-460.0,0.00022191,6]
[366534316,1750308636793,-460.0,0.00022191,6]
[366534317,1750308636803,-440.0,0.00022191,6]
[366534318,1750308636812,-460.0,0.00022191,6]
[366534319,1750308636822,-867.29,0.00022191,6]
[366534320,1750308636831,-420.0,0.00022191,6]
[366534321,1750308636840,-460.0,0.00022191,6]
[366534322,1750308636850,-460.0,0.00022191,6]
[366534323,1750308636860,-460.0,0.00022191,6]
[366534324,1750308636869,-307.99608311,0.00022191,6]
[366534325,1750308636879,-364.38473347,0.00022191,6]
[366534326,1750308636889,-460.0,0.00022191,6]
[366534327,1750308636899,-460.0,0.00022191,6]
[366534328,1750308636909,-430.0,0.00022191,6]
[366534329,1750308636918,-460.0,0.00022191,6]
[366534330,1750308636927,-460.0,0.00022191,6]
[366534331,1750308636937,-460.0,0.00022191,6]
[366534332,1750308636946,-712.26,0.00022191,6]
[366534333,1750308636955,-417.39426787,0.00022191,6]
[366534334,1750308636965,-460.0,0.00022191,6]
[366534335,1750308636974,-670.71,0.00022191,6]
[366534336,1750308636984,-460.0,0.00022191,6]
[366534337,1750308636994,-2312.17,0.00022191,6]
[366534338,1750308637004,-460.0,0.00022191,6]
[366534339,1750308637014,-460.0,0.00022191,6]
[366534340,1750308637024,-460.0,0.00022191,6]
[366534341,1750308637034,-460.0,0.00022191,6]
[366534342,1750308637044,-420.0,0.00022191,6]
[366534343,1750308637053,-460.0,0.00022191,6]
[366534344,1750308637066,-460.0,0.00022191,6]
[366534345,1750308637076,-1466.0,0.00022191,6]
[366534346,1750308637087,-500.0,0.00022191,6]
[366534347,1750308637096,-978.34,0.00022191,6]
[366534348,1750308637107,-281.89952691,0.00022191,6]
[366534349,1750308637115,-151.0,0.00022191,6]
[366534350,1750308637125,-500.0,0.00022191,6]
[366534351,1750308637134,-500.0,0.00022191,6]
[366534352,1750308637143,-460.0,0.00022191,6]
[366534353,1750308637153,-460.0,0.00022191,6]
[366534354,1750308637162,-151.0,0.00022191,6]
[366534355,1750308637172,-460.0,0.00022191,6]
[366534356,1750308637181,-460.0,0.00022191,6]
[366534357,1750308637190,-460.0,0.00022191,6]
[366534358,1750308637199,-183.93835613,0.00022191,6]
[366534359,1750308637208,-460.0,0.00022191,6]
[366534360,1750308637217,-430.0,0.00022191,6]
[366534361,1750308637226,-460.0,0.00022191,6]
[366534362,1750308637235,-460.0,0.00022191,6]
[366534363,1750308637245,-343.14764831,0.00022191,6]
[366534364,1750308637254,-183.17558546,0.00022191,6]
[366534365,1750308637263,-460.0,0.00022191,6]
[366534366,1750308637272,-460.0,0.00022191,6]
[366534367,1750308637282,-370.18694244,0.00022191,6]
[366534368,1750308637291,-460.0,0.00022191,6]
[366534369,1750308637300,-460.0,0.00022191,6]
[366534370,1750308637310,-460.0,0.00022191,6]
[366534371,1750308637319,-460.0,0.00022191,6]
[366534372,1750308637329,-460.0,0.00022191,6]
[366534373,1750308637338,-460.0,0.00022191,6]
[366534374,1750308637348,-498.72,0.00022191,6]
[366534375,1750308637357,-1172.89,0.00022191,6]
[366534376,1750308637366,-414.45587473,0.00022191,6]
[366534377,1750308637376,-377.96224011,0.00022191,6]
[366534378,1750308637385,-460.0,0.00022191,6]
[366534379,1750308637395,-460.0,0.00022191,6]
[366534380,1750308637407,-838.33,0.00022191,6]
[366534381,1750308637416,-460.0,0.00022191,6]
[366534382,1750308637425,-946.14,0.00022191,6]
[366534383,1750308637434,-3633.73,0.00022191,6]
[366534384,1750308637444,-460.0,0.00022191,6]
[366534385,1750308637453,-460.0,0.00022191,6]
[366534386,1750308637463,-2134.99,0.00022191,6]
[366534387,1750308637473,-682.89,0.00022191,6]
[366534388,1750308637483,-646.81,0.00022191,6]
[366534389,1750308637493,-447.55053229,0.00022191,6]
[366534390,1750308637503,-632.12,0.00022191,6]
[366534391,1750308637617,-527.15341155,0.00022191,6]
[366534392,1750308637628,-4864.11,0.00022191,6]
[366534393,1750308637637,-460.0,0.00022191,6]
[366534394,1750308637646,-945.01,0.00022191,6]
[366534395,1750308637655,-151.0,0.00022191,6]
[366534396,1750308637664,-460.0,0.00022191,6]
[366534397,1750308637674,-151.0,0.00022191,6]
[366534398,1750308637683,-500.0,0.00022191,6]
[366534399,1750308637693,-865.92,0.00022191,6]
[366534400,1750308637702,-500.0,0.00022191,6]
[366534401,1750308637712,-460.0,0.00022191,6]
[366534402,1750308637721,-151.0,0.00022191,6]
[366534403,1750308637730,-460.0,0.00022191,6]
[366534404,1750308637739,-500.0,0.00022191,6]
[366534405,1750308637748,-151.0,0.00022191,6]
[366534406,1750308637758,-460.0,0.00022191,6]
[366534407,1750308637767,-151.0,0.00022191,6]
[366534408,1750308637776,-460.0,0.00022191,6]
[366534409,1750308637785,-201.85981022,0.00022191,6]
[366534410,1750308637795,-460.0,0.00022191,6]
[366534411,1750308637805,-460.0,0.00022191,6]
[366534412,1750308637815,-151.0,0.00022191,6]
[366534413,1750308637824,-5808.66,0.00022191,6]
[366534414,1750308637834,-151.0,0.00022191,6]
[366534415,1750308637843,-1010.57,0.00022191,6]
[366534416,1750308637852,-441.95909268,0.00022191,6]
[366534417,1750308637861,-2307.10508681,0.00022191,6]
[366534418,1750308638004,-267.88980492,0.00022191,6]
[366534419,1750308638015,-526.41510827,0.00022191,6]
[366534420,1750308638025,-460.0,0.00022191,6]
[366534421,1750308638034,-460.0,0.00022191,6]
[366534422,1750308638044,-675.63,0.00022191,6]
[366534423,1750308638053,-172.56714549,0.00022191,6]
[366534424,1750308638068,-500.0,0.00019211,2]
[366534425,1750308638077,-2854.40825088,0.00022191,6]
[366534426,1750308638106,-500.0,0.00019211,2]
[366534427,1750308638116,-1308.47460363,0.00022191,6]
[366534428,1750308638125,-523.14,0.00022191,6]
[366534429,1750308638134,-491.74826938,0.00022191,6]
[366534431,1750308638144,-3884.9,0.00022191,6]
[366534432,1750308638153,-373.78590058,0.00022191,6]
[366534434,1750308638163,-460.0,0.00022191,6]
[366534436,1750308638173,-460.0,0.00022191,6]
[366534437,1750308638182,-110.54196772,0.00022191,6]
[366534446,1750308638728,-500.0,0.00019211,2]
[366534447,1750308638737,-500.0,0.00019211,2]
[366534448,1750308638747,-500.0,0.00019211,2]
[366534449,1750308638756,-500.0,0.00019211,2]
[366534450,1750308638765,-500.0,0.00019211,2]
[366534451,1750308638775,-500.0,0.00019211,2]
[366534452,1750308638784,-500.0,0.00019211,2]
[366534453,1750308638793,-500.0,0.00019211,2]
[366534454,1750308638803,-500.0,0.00019211,2]
[366534455,1750308638813,-500.0,0.00019211,2]
[366534456,1750308638822,-500.0,0.00019211,2]
[366534457,1750308638831,-500.0,0.00019211,2]
[366534458,1750308638840,-500.0,0.00019211,2]
[366534459,1750308638850,-460.0,0.00021917,6]
[366534460,1750308638859,-460.0,0.00021917,6]
[366534461,1750308638869,-460.0,0.00021917,6]
[366534462,1750308638878,-460.0,0.00021917,6]
[366534463,1750308638887,-349.45803228,0.00022191,6]
[366534464,1750308638896,-460.0,0.00022191,6]
[366534465,1750308638906,-460.0,0.00022191,6]
[366534466,1750308638916,-1873.23,0.00022191,6]
[366534467,1750308638925,-460.0,0.00022191,6]
[366534468,1750308638935,-1295.69,0.00022191,6]
[366534469,1750308638944,-1497.73,0.00022191,6]
[366534470,1750308638953,-1791.39,0.00022191,6]
[366534471,1750308638963,-151.0,0.00022191,6]
[366534472,1750308638973,-460.0,0.00022191,6]
[366534473,1750308638982,-460.0,0.00022191,6]
[366534474,1750308638992,-1177.54,0.00022191,6]
[366534475,1750308639002,-463.14026495,0.00022191,6]
[366534476,1750308639012,-460.0,0.00022191,6]
[366534477,1750308639021,-460.0,0.00022191,6]
[366534478,1750308639030,-460.0,0.00022191,6]
[366534479,1750308639039,-613.84,0.00022191,6]
[366534480,1750308639049,-449.88971218,0.00022191,6]
[366534481,1750308639058,-460.0,0.00022191,6]
[366534482,1750308639067,-622.91,0.00022191,6]
[366534483,1750308639076,-585.13,0.00022191,6]
[366534484,1750308639087,-460.0,0.00022191,6]
[366534485,1750308639098,-550.81,0.00022191,6]
[366534486,1750308639108,-460.0,0.00022191,6]
[366534487,1750308639117,-460.08389935,0.00022191,6]
[366534488,1750308639126,-460.0,0.00022191,6]
[366534489,1750308639135,-533.81,0.00022191,6]
[366534490,1750308639144,-520.91,0.00022191,6]
[366534491,1750308639153,-283.19185514,0.00022191,6]
[366534492,1750308639163,-460.0,0.00022191,6]
[366534493,1750308639172,-432.02727555,0.00022191,6]
[366534494,1750308639181,-450.41373447,0.00022191,6]
[366534495,1750308639190,-460.0,0.00022191,6]
[366534496,1750308639199,-460.0,0.00022191,6]
[366534497,1750308639208,-196.50840537,0.00022191,6]
[366534498,1750308639218,-430.0,0.00022191,6]
[366534499,1750308639227,-460.0,0.00022191,6]
[366534500,1750308639236,-1364.0,0.00022191,6]
[366534501,1750308639245,-300.0,0.00022191,2]
[366534502,1750308639254,-976.56,0.00022191,6]
[366534503,1750308639264,-460.0,0.00022191,6]
[366534504,1750308639273,-1715.47,0.00022191,6]
[366534505,1750308639282,-460.0,0.00022191,6]
[366534506,1750308639292,-460.0,0.00022191,6]
[366534507,1750308639301,-460.0,0.00022191,6]
[366534508,1750308639310,-1869.53,0.00022191,6]
[366534509,1750308639322,-460.0,0.00022191,6]
[366534510,1750308639332,-2787.17,0.00022191,6]
[366534511,1750308639343,-460.0,0.00022191,6]
[366534512,1750308639353,-387.40985349,0.00022191,6]
[366534513,1750308639363,-460.0,0.00022191,6]
[366534514,1750308639374,-3682.67,0.00022191,6]
[366534515,1750308639384,-538.91383131,0.00022191,6]
[366534516,1750308639397,-460.0,0.00022191,6]
[366534517,1750308639408,-675.69,0.00022191,6]
[366534518,1750308639418,-460.0,0.00022191,6]
[366534519,1750308639427,-3950.53,0.00022191,6]
[366534520,1750308639436,-460.0,0.00022191,6]
[366534521,1750308639447,-460.0,0.00022191,6]
[366534522,1750308639456,-73002.19,0.000222,7]
[366534523,1750308639467,-845.93775772,0.000222,7]
[366534524,1750308639476,-213.47708638,0.000222,7]
[366534525,1750308639486,-12544.68530873,0.000222,7]
[366534526,1750308639495,-160.0,0.000222,7]
[366534527,1750308639504,-1466.0,0.00022218,6]
[366534528,1750308639514,-500.0,0.00022218,6]
[366534529,1750308639523,-151.0,0.00022218,6]
[366534530,1750308639533,-501.23961877,0.00022218,6]
[366534531,1750308639543,-500.0,0.00022218,6]
[366534532,1750308639552,-151.0,0.00022218,6]
[366534533,1750308639562,-151.32482003,0.00022218,6]
[366534534,1750308639572,-151.41753838,0.00022218,6]
[366534535,1750308639581,-500.0,0.00022218,6]
[366534536,1750308639591,-500.0,0.00022218,6]
[366534537,1750308639600,-231.04509601,0.00022218,6]
[366534538,1750308639609,-500.0,0.00022218,6]
[366534539,1750308639617,-198.58624684,0.00022218,6]
[366534540,1750308639627,-151.0,0.00022218,6]
[366534541,1750308639636,-177.04143942,0.00022218,6]
[366534542,1750308639645,-151.0,0.00022218,6]
[366534543,1750308639654,-1466.0,0.00022246,6]
[366534544,1750308639663,-500.0,0.00022246,6]
[366534545,1750308639673,-151.0,0.00022246,6]
[366534546,1750308639682,-500.0,0.00022246,6]
[366534547,1750308639692,-151.0,0.00022246,6]
[366534548,1750308639701,-500.0,0.00022246,6]
[366534549,1750308639710,-500.0,0.00022246,6]
[366534550,1750308639719,-500.0,0.00022246,6]
[366534551,1750308639729,-193.70892126,0.00022246,6]
[366534552,1750308639739,-267.57688465,0.00022246,6]
[366534553,1750308639858,-1512.34510291,0.00022264,2]
[366534554,1750308639868,-294.39798574,0.00022267,2]
[366534555,1750308639878,-1466.0,0.00022273,6]
[366534556,1750308639887,-500.0,0.00022273,6]
[366534557,1750308639896,-228.2560716,0.00022273,6]
[366534558,1750308639906,-500.0,0.00022273,6]
[366534559,1750308639917,-151.0,0.00022273,6]
[366534560,1750308639926,-500.0,0.00022273,6]
[366534561,1750308639936,-500.0,0.00022273,6]
[366534562,1750308639946,-500.0,0.00022273,6]
[366534563,1750308639955,-303.3583109,0.00022297,12]
[366534564,1750308639966,-1466.0,0.00022301,6]
[366534565,1750308639975,-500.0,0.00022301,6]
[366534566,1750308639986,-500.0,0.00022301,6]
[366534567,1750308639995,-152.5341841,0.00022301,6]
[366534568,1750308640005,-500.0,0.00022301,6]
[366534569,1750308640015,-500.0,0.00022301,6]
[366534570,1750308640024,-500.0,0.00022301,6]
[366534571,1750308640034,-450.0,0.00022303,2]
[366534572,1750308640043,-1466.0,0.00022328,6]
[366534573,1750308640052,-500.0,0.00022328,6]
[366534574,1750308640062,-500.0,0.00022328,6]
[366534575,1750308640071,-500.0,0.00022328,6]
[366534576,1750308640080,-500.0,0.00022328,6]
[366534577,1750308640091,-500.0,0.00022328,6]
[366534578,1750308640100,-478.0,0.00022349,2]
[366534579,1750308640109,-151.0,0.00022355,7]
[366534580,1750308640119,-1466.0,0.00022355,6]
[366534581,1750308640128,-500.0,0.00022355,6]
[366534582,1750308640138,-500.0,0.00022355,6]
[366534583,1750308640147,-500.0,0.00022355,6]
[366534584,1750308640156,-500.0,0.00022355,6]
[366534585,1750308640166,-500.0,0.00022355,6]
[366534586,1750308640175,-603.11484643,0.00022363,3]
[366534587,1750308640184,-478.0,0.00022365,2]
[366534588,1750308640194,-500.0,0.0002238,2]
[366534589,1750308640204,-1466.0,0.00022383,6]
[366534590,1750308640213,-500.0,0.00022383,6]
[366534591,1750308640222,-500.0,0.00022383,6]
[366534592,1750308640232,-500.0,0.00022383,6]
[366534593,1750308640241,-500.0,0.00022383,6]
[366534594,1750308640250,-500.0,0.00022383,6]
[366534595,1750308640261,-501.09327739,0.00022394,2]
[366534596,1750308640270,-500.0,0.00022394,2]
[366534597,1750308640281,-1466.0,0.0002241,6]
[366534598,1750308640291,-500.0,0.0002241,6]
[366534599,1750308640302,-500.0,0.0002241,6]
[366534600,1750308640311,-500.0,0.0002241,6]
[366534601,1750308640322,-500.0,0.0002241,6]
[366534602,1750308640331,-500.0,0.0002241,6]
[366534603,1750308640341,-1466.0,0.00022438,6]
[366534604,1750308640351,-621.146023,0.00022438,6]
[366534605,1750308640361,-154.09503508,0.00022438,6]
[366534606,1750308640370,-232.26133193,0.00022438,6]
[366534607,1750308640380,-500.0,0.00022438,6]
[366534608,1750308640390,-500.0,0.00022438,6]
[366534609,1750308640403,-1378.24029683,0.00022442,2]
[366534610,1750308640413,-151.0,0.00022457,7]
[366534611,1750308640422,-151.0,0.00022457,7]
[366534612,1750308640432,-151.0,0.00022457,7]
[366534613,1750308640441,-213.47708638,0.00022457,2]
[366534614,1750308640450,-160.0,0.00022457,2]
[366534615,1750308640461,-12544.68530873,0.00022457,2]
[366534616,1750308640470,-160.0,0.00022457,2]
[366534617,1750308640483,-845.93775772,0.00022457,2]
[366534618,1750308640493,-1466.0,0.00022465,6]
[366534619,1750308640503,-500.0,0.00022465,6]
[366534621,1750308640512,-500.0,0.00022465,6]
[366534623,1750308640522,-460.0,0.00022465,6]
[366534624,1750308640532,-151.621784,0.00022465,7]
[366534625,1750308640541,-151.0,0.00022465,7]
[366534626,1750308640550,-286.821974,0.00022465,7]
[366534627,1750308640560,-460.0,0.00022465,6]
[366534628,1750308640569,-460.0,0.00022465,6]
[366534629,1750308640579,-460.0,0.00022465,6]
[366534630,1750308640588,-169.18391357,0.00022465,6]
[366534631,1750308640598,-151.0,0.00022465,7]
[366534632,1750308640607,-460.0,0.00022465,6]
[366534633,1750308640617,-867.29,0.00022465,6]
[366534634,1750308640626,-185.9413,0.00022465,7]
[366534635,1750308640635,-460.0,0.00022465,6]
[366534636,1750308640645,-460.0,0.00022465,6]
[366534637,1750308640655,-450.58499323,0.00022465,6]
[366534638,1750308640664,-460.0,0.00022465,6]
[366534639,1750308640674,-460.0,0.00022465,6]
[366534640,1750308640684,-460.0,0.00022465,6]
[366534641,1750308640693,-460.0,0.00022465,6]
[366534642,1750308640703,-712.26,0.00022465,6]
[366534643,1750308640713,-364.9419734,0.00022465,6]
[366534644,1750308640723,-670.71,0.00022465,6]
[366534645,1750308640732,-460.0,0.00022465,6]
[366534646,1750308640742,-2312.17,0.00022465,6]
[366534647,1750308640752,-460.0,0.00022465,6]
[366534648,1750308640761,-539.30162044,0.00022465,6]
[366534649,1750308640771,-151.0,0.00022465,7]
[366534650,1750308640780,-151.0,0.00022465,7]
[366534651,1750308640791,-460.0,0.00022465,6]
[366534652,1750308640800,-460.0,0.00022465,6]
[366534653,1750308640810,-460.0,0.00022465,6]
[366534654,1750308640819,-460.0,0.00022465,6]
[366534655,1750308640828,-151.0,0.00022465,7]
[366534656,1750308640838,-151.0,0.00022465,7]
[366534657,1750308640847,-152.517837,0.00022465,7]
[366534658,1750308640856,-151.0,0.00022465,7]
[366534659,1750308640866,-151.0,0.00022465,7]
[366534660,1750308640875,-978.34,0.00022465,6]
[366534661,1750308640884,-460.0,0.00022465,6]
[366534662,1750308640894,-460.0,0.00022465,6]
[366534663,1750308640903,-460.0,0.00022465,6]
[366534664,1750308640913,-460.0,0.00022465,6]
[366534665,1750308640922,-151.0,0.00022465,7]
[366534666,1750308640932,-169.92202262,0.00022465,6]
[366534667,1750308640941,-995.071167,0.00022465,7]
[366534668,1750308640951,-995.071167,0.00022465,7]
[366534669,1750308640960,-460.0,0.00022465,6]
[366534670,1750308640970,-289.557494,0.00022465,7]
[366534671,1750308640980,-460.0,0.00022465,6]
[366534672,1750308640990,-151.0,0.00022465,7]
[366534673,1750308640999,-289.557494,0.00022465,7]
[366534674,1750308641010,-151.0,0.00022465,7]
[366534675,1750308641022,-460.0,0.00022465,6]
[366534676,1750308641034,-460.0,0.00022465,6]
[366534677,1750308641044,-460.0,0.00022465,6]
[366534678,1750308641053,-324.36017514,0.00022465,6]
[366534679,1750308641063,-460.0,0.00022465,6]
[366534680,1750308641072,-151.0,0.00022465,7]
[366534681,1750308641082,-151.0,0.00022465,7]
[366534682,1750308641091,-460.0,0.00022465,6]
[366534683,1750308641101,-151.0,0.00022465,7]
[366534684,1750308641110,-151.0,0.00022465,7]
[366534685,1750308641119,-460.0,0.00022465,6]
[366534686,1750308641129,-460.0,0.00022465,6]
[366534687,1750308641138,-151.0,0.00022465,7]
[366534688,1750308641154,-1172.89,0.00022465,6]
[366534689,1750308641164,-460.0,0.00022465,6]
[366534690,1750308641175,-151.0,0.00022465,7]
[366534691,1750308641185,-838.33,0.00022465,6]
[366534692,1750308641195,-460.0,0.00022465,6]
[366534693,1750308641204,-151.0,0.00022465,7]
[366534694,1750308641213,-946.14,0.00022465,6]
[366534695,1750308641223,-151.574387,0.00022465,7]
[366534696,1750308641232,-3633.73,0.00022465,6]
[366534697,1750308641241,-460.0,0.00022465,6]
[366534698,1750308641251,-151.0,0.00022465,7]
[366534699,1750308641260,-151.0,0.00022465,7]
[366534700,1750308641269,-460.0,0.00022465,6]
[366534701,1750308641279,-178.567552,0.00022465,7]
[366534702,1750308641289,-2134.99,0.00022465,6]
[366534703,1750308641299,-178.567552,0.00022465,7]
[366534704,1750308641308,-682.89,0.00022465,6]
[366534705,1750308641317,-646.81,0.00022465,6]
[366534706,1750308641326,-632.12,0.00022465,6]
[366534707,1750308641336,-4864.11,0.00022465,6]
[366534708,1750308641345,-151.0,0.00022465,7]
[366534709,1750308641354,-945.01,0.00022465,6]
[366534710,1750308641363,-460.0,0.00022465,6]
[366534711,1750308641372,-460.0,0.00022465,6]
[366534712,1750308641382,-865.92,0.00022465,6]
[366534713,1750308641391,-151.0,0.00022465,7]
[366534714,1750308641404,-460.0,0.00022465,6]
[366534715,1750308641414,-151.0,0.00022465,7]
[366534716,1750308641423,-474.25697073,0.00022465,6]
[366534717,1750308641433,-460.0,0.00022465,6]
[366534718,1750308641443,-433.40782733,0.00022465,6]
[366534719,1750308641452,-460.0,0.00022465,6]
[366534720,1750308641461,-460.0,0.00022465,6]
[366534721,1750308641472,-5808.66,0.00022465,6]
[366534722,1750308641481,-1010.57,0.00022465,6]
[366534723,1750308641491,-3101.41,0.00022465,6]
[366534724,1750308641500,-430.0,0.00022465,6]
[366534725,1750308641510,-675.63,0.00022465,6]
[366534726,1750308641519,-4335.45,0.00022465,6]
[366534727,1750308641529,-523.14,0.00022465,6]
[366534728,1750308641538,-151.0,0.00022465,7]
[366534729,1750308641548,-3884.9,0.00022465,6]
[366534730,1750308641558,-460.0,0.00022465,6]
[366534731,1750308641567,-460.0,0.00022465,6]
[366534732,1750308641577,-460.0,0.00022465,6]
[366534733,1750308641586,-460.0,0.00022465,6]
[366534734,1750308641595,-460.0,0.00022465,6]
[366534735,1750308641606,-1873.23,0.00022465,6]
[366534736,1750308641615,-404.96000628,0.00022465,6]
[366534737,1750308641624,-1295.69,0.00022465,6]
[366534738,1750308641634,-1497.73,0.00022465,6]
[366534739,1750308641643,-1791.39,0.00022465,6]
[366534740,1750308641653,-153.420821,0.00022465,7]
[366534741,1750308641662,-460.0,0.00022465,6]
[366534742,1750308641672,-1177.54,0.00022465,6]
[366534743,1750308641681,-460.0,0.00022465,6]
[366534744,1750308641691,-460.0,0.00022465,6]
[366534745,1750308641700,-460.0,0.00022465,6]
[366534746,1750308641710,-613.84,0.00022465,6]
[366534747,1750308641720,-460.0,0.00022465,6]
[366534748,1750308641729,-622.91,0.00022465,6]
[366534749,1750308641739,-585.13,0.00022465,6]
[366534750,1750308641748,-460.0,0.00022465,6]
[366534751,1750308641758,-550.81,0.00022465,6]
[366534752,1750308641768,-460.0,0.00022465,6]
[366534753,1750308641778,-460.0,0.00022465,6]
[366534754,1750308641788,-533.81,0.00022465,6]
[366534755,1750308641798,-520.91,0.00022465,6]
[366534756,1750308641807,-460.0,0.00022465,6]
[366534757,1750308641816,-460.0,0.00022465,6]
[366534758,1750308641825,-460.0,0.00022465,6]
[366534759,1750308641835,-443.66890496,0.00022465,6]
[366534760,1750308641844,-1364.0,0.00022465,6]
[366534761,1750308641853,-300.0,0.00022465,2]
[366534762,1750308641862,-375.02252,0.00022465,7]
[366534763,1750308641872,-976.56,0.00022465,6]
[366534764,1750308641881,-460.0,0.00022465,6]
[366534765,1750308641891,-1715.47,0.00022465,6]
[366534766,1750308641900,-375.02252,0.00022465,7]
[366534767,1750308641911,-460.0,0.00022465,6]
[366534768,1750308641921,-460.0,0.00022465,6]
[366534769,1750308641930,-268.941156,0.00022465,7]
[366534770,1750308641939,-460.0,0.00022465,6]
[366534771,1750308641949,-1869.53,0.00022465,6]
[366534772,1750308641959,-460.0,0.00022465,6]
[366534773,1750308641968,-2787.17,0.00022465,6]
[366534774,1750308641977,-460.0,0.00022465,6]
[366534775,1750308641987,-460.0,0.00022465,6]
[366534776,1750308641996,-3682.67,0.00022465,6]